fUST/lending_fUST_20250213
["ID","MTS","AMOUNT","RATE_DAILY","PERIOD"]
[352952963,1739459442657,-289.609784,0.00013698,2]
[352952965,1739459442667,-289.609784,0.00013698,2]
[352952967,1739459442676,-1073.82,0.00013698,2]
[352952969,1739459442686,-153.0,0.000137,2]
[352952971,1739459442695,-153.0,0.000137,2]
[352952973,1739459442706,-153.0,0.000137,2]
[352952975,1739459442715,-1928.97521019,0.00013763,2]
[352952977,1739459442725,-5048.69,0.00013778,2]
[352952979,1739459442735,-170.110562,0.00013778,2]
[352952981,1739459442745,-289.609784,0.00013778,2]
[352952983,1739459442755,-170.110565,0.00013778,2]
[352952985,1739459442765,-289.609789,0.00013778,2]
[352952987,1739459442775,-151.0,0.00013779,2]
[352952989,1739459442785,-960.29,0.00013779,2]
[352952991,1739459442794,-960.29,0.00013779,2]
[352952993,1739459442804,-151.0,0.00013779,2]
[352952995,1739459442814,-174.06446,0.00013779,2]
[352952997,1739459442824,-174.06446,0.00013779,2]
[352952999,1739459442834,-151.0,0.00013779,2]
[352953001,1739459442843,-173.297412,0.00013779,2]
[352953003,1739459442853,-173.297412,0.00013779,2]
[352953005,1739459442863,-1139.18,0.00013779,2]
[352953007,1739459442875,-1139.18,0.00013779,2]
[352953008,1739459442884,-261.543676,0.00013779,2]
[352953010,1739459442893,-261.543676,0.00013779,2]
[352953012,1739459442903,-176.594536,0.00013779,2]
[352953014,1739459442914,-176.594536,0.00013779,2]
[352953016,1739459442924,-528.853298,0.00013779,2]
[352953018,1739459442934,-528.853298,0.00013779,2]
[352953020,1739459442943,-480.361828,0.00013779,2]
[352953022,1739459442953,-480.361828,0.00013779,2]
[352953025,1739459442963,-500.0,0.00013779,2]
[352953039,1739459443096,-549.94,0.00013779,2]
[352953041,1739459443109,-5048.69,0.00013779,2]
[352953043,1739459443122,-5048.69,0.00013779,2]
[352953045,1739459443132,-5048.69,0.00013779,2]
[352953047,1739459443142,-5048.69,0.00013779,2]
[352953049,1739459443152,-5048.69,0.00013779,2]
[352953051,1739459443162,-5048.69,0.00013779,2]
[352953053,1739459443172,-5048.69,0.00013779,2]
[352953055,1739459443182,-180.942873,0.00013779,2]
[352953057,1739459443192,-180.942873,0.00013779,2]
[352953059,1739459443202,-500.0,0.00013779,2]
[352953061,1739459443211,-500.0,0.00013779,2]
[352953063,1739459443221,-151.0,0.00013779,2]
[352953065,1739459443231,-544.915155,0.00013779,2]
[352953067,1739459443240,-544.915155,0.00013779,2]
[352953069,1739459443253,-500.0,0.00013779,2]
[352953071,1739459443263,-1746.49,0.00013779,2]
[352953073,1739459443272,-1746.49,0.00013779,2]
[352953075,1739459443281,-21698.22,0.00013779,2]
[352953077,1739459443292,-151.0,0.00013779,2]
[352953081,1739459443301,-1944.18,0.00013779,2]
[352953085,1739459443311,-500.0,0.00013779,2]
[352953088,1739459443320,-500.0,0.00013779,2]
[352953092,1739459443333,-277.854054,0.00013779,2]
[352953097,1739459443342,-277.854054,0.00013779,2]
[352953100,1739459443352,-500.0,0.00013779,2]
[352953102,1739459443361,-151.218869,0.0001378,2]
[352953104,1739459443372,-151.0,0.0001378,2]
[352953106,1739459443384,-2196.206932,0.0001378,2]
[352953108,1739459443394,-151.38088,0.0001378,2]
[352953111,1739459443404,-160.372838,0.0001378,2]
[352953113,1739459443414,-3085.109234,0.0001378,2]
[352953115,1739459443424,-3085.109234,0.0001378,2]
[352953117,1739459443434,-500.0,0.0001378,2]
[352953119,1739459443443,-572.17,0.0001378,2]
[352953121,1739459443453,-500.0,0.0001378,2]
[352953124,1739459443463,-500.0,0.0001378,2]
[352953126,1739459443473,-500.88802565,0.0001378,2]
[352953128,1739459443484,-500.0,0.0001378,2]
[352953130,1739459443493,-500.0,0.0001378,2]
[352953132,1739459443503,-500.0,0.0001378,2]
[352953134,1739459443513,-500.0,0.0001378,2]
[352953136,1739459443523,-500.0,0.0001378,2]
[352953138,1739459443534,-500.0,0.0001378,2]
[352953141,1739459443544,-500.0,0.0001378,2]
[352953143,1739459443554,-500.0,0.0001378,2]
[352953145,1739459443564,-500.0,0.0001378,2]
[352953147,1739459443574,-500.0,0.0001378,2]
[352953149,1739459443583,-500.0,0.0001378,2]
[352953151,1739459443593,-500.0,0.0001378,2]
[352953153,1739459443604,-151.0,0.0001378,2]
[352953155,1739459443613,-500.05769265,0.0001378,2]
[352953157,1739459443626,-502.52018815,0.0001378,2]
[352953159,1739459443636,-1229.38,0.0001378,2]
[352953161,1739459443646,-722.01,0.0001378,2]
[352953163,1739459443656,-500.0,0.0001378,2]
[352953165,1739459443665,-500.73004917,0.0001378,2]
[352953167,1739459443674,-500.0,0.0001378,2]
[352953169,1739459443684,-500.0,0.0001378,2]
[352953171,1739459443693,-500.0,0.0001378,2]
[352953173,1739459443703,-500.0,0.0001378,2]
[352953175,1739459443714,-500.0,0.0001378,2]
[352953177,1739459443725,-500.0,0.0001378,2]
[352953179,1739459443735,-246.66829523,0.0001378,2]
[352953181,1739459443744,-500.0,0.0001378,2]
[352953183,1739459443754,-500.0,0.0001378,2]
[352953185,1739459443764,-500.0,0.0001378,2]
[352953187,1739459443773,-500.0,0.0001378,2]
[352953189,1739459443782,-500.0,0.0001378,2]
[352953191,1739459443792,-500.0,0.0001378,2]
[352953193,1739459443802,-500.0,0.0001378,2]
[352953195,1739459443812,-500.0,0.0001378,2]
[352953197,1739459443821,-500.0,0.0001378,2]
[352953199,1739459443832,-336.966919,0.0001378,2]
[352953201,1739459443841,-1435.79,0.0001378,2]
[352953203,1739459443851,-500.0,0.0001378,2]
[352953205,1739459443860,-500.0,0.0001378,2]
[352953207,1739459443872,-336.966919,0.0001378,2]
[352953209,1739459443882,-500.0,0.0001378,2]
[352953211,1739459443892,-737.81,0.0001378,2]
[352953213,1739459443901,-500.0,0.0001378,2]
[352953215,1739459443911,-500.0,0.0001378,2]
[352953217,1739459443920,-500.0,0.0001378,2]
[352953219,1739459443929,-500.0,0.0001378,2]
[352953221,1739459443940,-500.0,0.0001378,2]
[352953223,1739459443950,-500.0,0.0001378,2]
[352953225,1739459443960,-553.51,0.0001378,2]
[352953227,1739459443970,-500.0,0.0001378,2]
[352953229,1739459443979,-500.0,0.0001378,2]
[352953231,1739459443989,-500.0,0.0001378,2]
[352953233,1739459443999,-371.20756796,0.0001378,2]
[352953235,1739459444009,-500.0,0.0001378,2]
[352953237,1739459444018,-501.99269364,0.0001378,2]
[352953239,1739459444028,-500.0,0.0001378,2]
[352953241,1739459444038,-500.0,0.0001378,2]
[352953243,1739459444047,-500.0,0.0001378,2]
[352953246,1739459444057,-500.0,0.0001378,2]
[352953249,1739459444067,-1294.28,0.0001378,2]
[352953252,1739459444076,-500.0,0.0001378,2]
[352953255,1739459444085,-151.0,0.0001378,2]
[352953256,1739459444094,-151.600253,0.0001378,2]
[352953257,1739459444104,-154.712177,0.0001378,2]
[352953258,1739459444113,-500.0,0.0001378,2]
[352953259,1739459444124,-500.0,0.0001378,2]
[352953260,1739459444134,-500.0,0.0001378,2]
[352953261,1739459444143,-500.0,0.0001378,2]
[352953262,1739459444153,-500.0,0.0001378,2]
[352953263,1739459444163,-1016.85,0.0001378,2]
[352953264,1739459444172,-500.0,0.0001378,2]
[352953265,1739459444182,-500.0,0.0001378,2]
[352953266,1739459444191,-500.0,0.0001378,2]
[352953267,1739459444200,-689.00328,0.0001378,2]
[352953268,1739459444210,-505.29478759,0.0001378,2]
[352953269,1739459444220,-576.21656737,0.0001378,2]
[352953270,1739459444229,-500.0,0.0001378,2]
[352953271,1739459444239,-500.0,0.0001378,2]
[352953272,1739459444251,-500.0,0.0001378,2]
[352953273,1739459444262,-500.0,0.0001378,2]
[352953274,1739459444271,-689.00328,0.0001378,2]
[352953275,1739459444281,-500.0,0.0001378,2]
[352953276,1739459444291,-500.0,0.0001378,2]
[352953277,1739459444300,-1693.82455,0.0001378,2]
[352953278,1739459444310,-500.56,0.0001378,2]
[352953279,1739459444319,-1693.82455,0.0001378,2]
[352953280,1739459444330,-500.0,0.0001378,2]
[352953281,1739459444339,-1693.82455,0.0001378,2]
[352953282,1739459444349,-500.0,0.0001378,2]
[352953283,1739459444358,-1693.82455,0.0001378,2]
[352953284,1739459444369,-1143.73,0.0001378,2]
[352953285,1739459444380,-1693.82455,0.0001378,2]
[352953286,1739459444389,-1693.82455,0.0001378,2]
[352953287,1739459444399,-500.0,0.0001378,2]
[352953288,1739459444409,-500.0,0.0001378,2]
[352953289,1739459444420,-501.34098689,0.0001378,2]
[352953290,1739459444429,-500.0,0.0001378,2]
[352953291,1739459444439,-500.0,0.0001378,2]
[352953292,1739459444449,-500.0,0.0001378,2]
[352953293,1739459444459,-500.0,0.0001378,2]
[352953294,1739459444468,-500.0,0.0001378,2]
[352953295,1739459444478,-500.0,0.0001378,2]
[352953296,1739459444594,-500.0,0.0001378,2]
[352953297,1739459444604,-500.0,0.0001378,2]
[352953298,1739459444613,-500.0,0.0001378,2]
[352953299,1739459444624,-538.47516557,0.0001378,2]
[352953300,1739459444634,-500.0,0.0001378,2]
[352953301,1739459444643,-1994.69,0.0001378,2]
[352953302,1739459444653,-500.0,0.0001378,2]
[352953303,1739459444663,-500.0,0.0001378,2]
[352953304,1739459444672,-500.0,0.0001378,2]
[352953305,1739459444682,-500.0,0.0001378,2]
[352953306,1739459444692,-1237.37,0.0001378,2]
[352953307,1739459444701,-503.645988,0.0001378,2]
[352953309,1739459444711,-500.0,0.0001378,2]
[352953310,1739459444720,-500.0,0.0001378,2]
[352953312,1739459444730,-505.44,0.0001378,2]
[352953313,1739459444740,-500.0,0.0001378,2]
[352953315,1739459444749,-500.0,0.0001378,2]
[352953316,1739459444758,-558.475472,0.0001378,2]
[352953317,1739459444767,-361.51524701,0.0001378,2]
[352953319,1739459444779,-558.475472,0.0001378,2]
[352953321,1739459444790,-501.29958784,0.0001378,2]
[352953322,1739459444800,-500.0,0.0001378,2]
[352953324,1739459444810,-500.0,0.0001378,2]
[352953325,1739459444821,-500.0,0.0001378,2]
[352953327,1739459444831,-500.0,0.0001378,2]
[352953328,1739459444841,-500.0,0.0001378,2]
[352953330,1739459444851,-500.0,0.0001378,2]
[352953332,1739459444860,-500.0,0.0001378,2]
[352953333,1739459444870,-506.39700321,0.0001378,2]
[352953335,1739459444880,-151.0,0.0001378,2]
[352953336,1739459444889,-500.0,0.0001378,2]
[352953337,1739459444899,-151.0,0.0001378,2]
[352953339,1739459444908,-151.0,0.0001378,2]
[352953341,1739459444919,-151.0,0.0001378,2]
[352953342,1739459444929,-500.0,0.0001378,2]
[352953344,1739459444938,-500.0,0.0001378,2]
[352953345,1739459444948,-503.00410031,0.0001378,2]
[352953347,1739459444957,-500.92047458,0.0001378,2]
[352953349,1739459444967,-174.06446,0.0001378,2]
[352953350,1739459444976,-174.06446,0.0001378,2]
[352953352,1739459444986,-174.06446,0.0001378,2]
[352953353,1739459444995,-174.06446,0.0001378,2]
[352953355,1739459445004,-559.33,0.0001378,2]
[352953356,1739459445014,-500.0,0.0001378,2]
[352953358,1739459445023,-500.0,0.0001378,2]
[352953359,1739459445032,-174.06446,0.0001378,2]
[352953361,1739459445042,-174.06446,0.0001378,2]
[352953363,1739459445052,-174.06446,0.0001378,2]
[352953364,1739459445061,-513.37,0.0001378,2]
[352953366,1739459445072,-174.06446,0.0001378,2]
[352953368,1739459445082,-500.42531275,0.0001378,2]
[352953369,1739459445091,-500.0,0.0001378,2]
[352953371,1739459445101,-523.39,0.0001378,2]
[352953372,1739459445110,-585.05,0.0001378,2]
[352953374,1739459445120,-542.85,0.0001378,2]
[352953376,1739459445129,-500.0,0.0001378,2]
[352953377,1739459445138,-451.16828845,0.0001378,2]
[352953379,1739459445148,-237.819296,0.0001378,2]
[352953381,1739459445158,-237.819296,0.0001378,2]
[352953382,1739459445167,-237.819296,0.0001378,2]
[352953384,1739459445178,-500.39365831,0.0001378,2]
[352953386,1739459445188,-500.0,0.0001378,2]
[352953387,1739459445198,-237.819296,0.0001378,2]
[352953389,1739459445207,-237.819296,0.0001378,2]
[352953391,1739459445217,-237.819296,0.0001378,2]
[352953392,1739459445226,-500.0,0.0001378,2]
[352953394,1739459445235,-503.14423903,0.0001378,2]
[352953395,1739459445247,-500.0,0.0001378,2]
[352953397,1739459445258,-635.84,0.0001378,2]
[352953399,1739459445267,-500.0,0.0001378,2]
[352953400,1739459445277,-151.0,0.0001378,2]
[352953402,1739459445287,-151.0,0.0001378,2]
[352953404,1739459445298,-151.0,0.0001378,2]
[352953405,1739459445307,-500.0,0.0001378,2]
[352953407,1739459445317,-151.0,0.0001378,2]
[352953409,1739459445327,-151.0,0.0001378,2]
[352953410,1739459445337,-151.0,0.0001378,2]
[352953412,1739459445347,-151.0,0.0001378,2]
[352953414,1739459445356,-1221.89,0.0001378,2]
[352953415,1739459445366,-500.0,0.0001378,2]
[352953417,1739459445378,-151.0,0.0001378,2]
[352953418,1739459445387,-151.0,0.0001378,2]
[352953420,1739459445397,-503.00284718,0.0001378,2]
[352953422,1739459445406,-151.0,0.0001378,2]
[352953423,1739459445415,-173.297412,0.0001378,2]
[352953425,1739459445424,-173.297412,0.0001378,2]
[352953427,1739459445434,-173.297412,0.0001378,2]
[352953428,1739459445443,-248.56594235,0.0001378,2]
[352953430,1739459445454,-173.297412,0.0001378,2]
[352953431,1739459445463,-173.297412,0.0001378,2]
[352953433,1739459445473,-173.297412,0.0001378,2]
[352953435,1739459445483,-1100.98,0.0001378,2]
[352953436,1739459445492,-151.0,0.0001378,2]
[352953438,1739459445502,-151.0,0.0001378,2]
[352953439,1739459445511,-151.0,0.0001378,2]
[352953441,1739459445521,-151.0,0.0001378,2]
[352953443,1739459445531,-151.0,0.0001378,2]
[352953444,1739459445541,-500.0,0.0001378,2]
[352953446,1739459445550,-185.138093,0.0001378,2]
[352953448,1739459445560,-508.26420425,0.0001378,2]
[352953449,1739459445569,-500.0,0.0001378,2]
[352953451,1739459445579,-500.0,0.0001378,2]
[352953453,1739459445588,-500.0,0.0001378,2]
[352953454,1739459445599,-500.0,0.0001378,2]
[352953456,1739459445608,-500.0,0.0001378,2]
[352953457,1739459445618,-500.0,0.0001378,2]
[352953459,1739459445629,-500.0,0.0001378,2]
[352953461,1739459445639,-289.75856593,0.0001378,2]
[352953462,1739459445648,-500.63455956,0.0001378,2]
[352953464,1739459445659,-500.0,0.0001378,2]
[352953465,1739459445668,-500.0,0.0001378,2]
[352953467,1739459445679,-500.0,0.0001378,2]
[352953469,1739459445689,-500.0,0.0001378,2]
[352953470,1739459445699,-500.0,0.0001378,2]
[352953472,1739459445708,-1280.69,0.0001378,2]
[352953474,1739459445718,-500.0,0.0001378,2]
[352953475,1739459445727,-500.0,0.0001378,2]
[352953477,1739459445737,-500.0,0.0001378,2]
[352953479,1739459445747,-2398.84,0.0001378,2]
[352953481,1739459445757,-500.0,0.0001378,2]
[352953483,1739459445767,-500.0,0.0001378,2]
[352953485,1739459445777,-500.0,0.0001378,2]
[352953487,1739459445787,-642.43,0.0001378,2]
[352953489,1739459445796,-261.543676,0.0001378,2]
[352953491,1739459445807,-261.543676,0.0001378,2]
[352953494,1739459445818,-261.543676,0.0001378,2]
[352953496,1739459445828,-582.18,0.0001378,2]
[352953498,1739459445838,-1590.54,0.0001378,2]
[352953500,1739459445849,-604.04,0.0001378,2]
[352953508,1739459445973,-261.543676,0.0001378,2]
[352953509,1739459445984,-500.0,0.0001378,2]
[352953510,1739459445996,-261.543676,0.0001378,2]
[352953511,1739459446006,-261.543672,0.0001378,2]
[352953512,1739459446017,-500.0,0.0001378,2]
[352953513,1739459446027,-506.40256578,0.0001378,2]
[352953514,1739459446037,-500.0,0.0001378,2]
[352953515,1739459446048,-523.07,0.0001378,2]
[352953516,1739459446057,-500.0,0.0001378,2]
[352953517,1739459446067,-500.0,0.0001378,2]
[352953518,1739459446078,-653.81,0.0001378,2]
[352953519,1739459446088,-500.0,0.0001378,2]
[352953520,1739459446098,-500.0,0.0001378,2]
[352953521,1739459446108,-1283.4,0.0001378,2]
[352953522,1739459446118,-1979.89,0.0001378,2]
[352953523,1739459446129,-1558.8,0.0001378,2]
[352953524,1739459446140,-500.0,0.0001378,2]
[352953525,1739459446151,-500.0,0.0001378,2]
[352953526,1739459446161,-3251.96,0.0001378,2]
[352953527,1739459446170,-500.0,0.0001378,2]
[352953528,1739459446182,-284.66986559,0.0001378,2]
[352953529,1739459446192,-500.0,0.0001378,2]
[352953530,1739459446203,-639.73,0.0001378,2]
[352953531,1739459446213,-502.71759723,0.0001378,2]
[352953532,1739459446223,-500.0,0.0001378,2]
[352953533,1739459446233,-176.594536,0.0001378,2]
[352953534,1739459446242,-176.594536,0.0001378,2]
[352953535,1739459446254,-176.594536,0.0001378,2]
[352953537,1739459446266,-500.0,0.0001378,2]
[352953539,1739459446275,-176.594536,0.0001378,2]
[352953541,1739459446285,-731.06,0.0001378,2]
[352953544,1739459446294,-176.594536,0.0001378,2]
[352953546,1739459446304,-176.594546,0.0001378,2]
[352953548,1739459446315,-500.0,0.0001378,2]
[352953551,1739459446325,-500.0,0.0001378,2]
[352953553,1739459446337,-500.0,0.0001378,2]
[352953556,1739459446347,-567.83,0.0001378,2]
[352953559,1739459446356,-528.853298,0.0001378,2]
[352953561,1739459446366,-528.853298,0.0001378,2]
[352953563,1739459446377,-528.853298,0.0001378,2]
[352953565,1739459446387,-500.0,0.0001378,2]
[352953567,1739459446397,-500.0,0.0001378,2]
[352953569,1739459446407,-500.0,0.0001378,2]
[352953571,1739459446417,-528.853298,0.0001378,2]
[352953573,1739459446427,-500.0,0.0001378,2]
[352953576,1739459446437,-480.361828,0.0001378,2]
[352953578,1739459446448,-528.853298,0.0001378,2]
[352953580,1739459446458,-624.66756637,0.0001378,2]
[352953582,1739459446468,-528.853295,0.0001378,2]
[352953584,1739459446478,-583.57,0.0001378,2]
[352953585,1739459446488,-500.39194274,0.0001378,2]
[352953588,1739459446500,-480.361824,0.0001378,2]
[352953590,1739459446514,-500.0,0.0001378,2]
[352953592,1739459446524,-500.0,0.0001378,2]
[352953594,1739459446535,-597.41,0.0001378,2]
[352953596,1739459446545,-500.0,0.0001378,2]
[352953598,1739459446554,-500.0,0.0001378,2]
[352953600,1739459446564,-500.0,0.0001378,2]
[352953602,1739459446574,-1166.38,0.0001378,2]
[352953604,1739459446584,-1291.99,0.0001378,2]
[352953606,1739459446598,-500.0,0.0001378,2]
[352953609,1739459446621,-904.91,0.0001378,2]
[352953612,1739459446640,-500.0,0.0001378,2]
[352953616,1739459446663,-500.0,0.0001378,2]
[352953619,1739459446689,-500.0,0.0001378,2]
[352953622,1739459446709,-500.0,0.0001378,2]
[352953625,1739459446731,-500.0,0.0001378,2]
[352953628,1739459446748,-500.0,0.0001378,2]
[352953631,1739459446768,-500.0,0.0001378,2]
[352953634,1739459446789,-974.18,0.0001378,2]
[352953637,1739459446811,-500.0,0.0001378,2]
[352953640,1739459446832,-500.0,0.0001378,2]
[352953643,1739459446857,-500.0,0.0001378,2]
[352953646,1739459446879,-500.0,0.0001378,2]
[352953649,1739459446897,-500.0,0.0001378,2]
[352953651,1739459446914,-500.0,0.0001378,2]
[352953654,1739459446933,-500.0,0.0001378,2]
[352953657,1739459446951,-4408.01,0.0001378,2]
[352953660,1739459446970,-500.0,0.0001378,2]
[352953663,1739459446990,-664.73,0.0001378,2]
[352953666,1739459447011,-500.0,0.0001378,2]
[352953669,1739459447029,-500.0,0.0001378,2]
[352953672,1739459447047,-2545.11,0.0001378,2]
[352953675,1739459447065,-500.0,0.0001378,2]
[352953678,1739459447083,-500.0,0.0001378,2]
[352953681,1739459447102,-500.0,0.0001378,2]
[352953684,1739459447120,-500.0,0.0001378,2]
[352953686,1739459447140,-500.0,0.0001378,2]
[352953689,1739459447159,-7548.39,0.0001378,2]
[352953692,1739459447176,-500.0,0.0001378,2]
[352953695,1739459447197,-500.0,0.0001378,2]
[352953698,1739459447215,-553.42,0.0001378,2]
[352953701,1739459447233,-500.0,0.0001378,2]
[352953704,1739459447253,-500.0,0.0001378,2]
[352953706,1739459447271,-1560.53,0.0001378,2]
[352953709,1739459447291,-180.942873,0.0001378,2]
[352953712,1739459447309,-180.942873,0.0001378,2]
[352953715,1739459447326,-180.942873,0.0001378,2]
[352953718,1739459447346,-7508.17,0.0001378,2]
[352953721,1739459447363,-522.64,0.0001378,2]
[352953724,1739459447383,-500.0,0.0001378,2]
[352953726,1739459447400,-180.942873,0.0001378,2]
[352953729,1739459447418,-180.942873,0.0001378,2]
[352953732,1739459447437,-180.942868,0.0001378,2]
[352953735,1739459447454,-500.0,0.0001378,2]
[352953738,1739459447472,-500.0,0.0001378,2]
[352953741,1739459447488,-500.0,0.0001378,2]
[352953744,1739459447505,-538.57,0.0001378,2]
[352953746,1739459447523,-2618.47,0.0001378,2]
[352953749,1739459447540,-618.89,0.0001378,2]
[352953752,1739459447559,-500.0,0.0001378,2]
[352953755,1739459447576,-670.4,0.0001378,2]
[352953758,1739459447595,-500.0,0.0001378,2]
[352953761,1739459447612,-549.91,0.0001378,2]
[352953763,1739459447622,-500.0,0.0001378,2]
[352953765,1739459447632,-500.0,0.0001378,2]
[352953767,1739459447641,-726.11,0.0001378,2]
[352953769,1739459447651,-1568.7,0.0001378,2]
[352953792,1739459447856,-500.0,0.0001378,2]
[352953796,1739459447892,-151.0,0.0001378,2]
[352953798,1739459447903,-500.0,0.0001378,2]
[352953801,1739459447913,-500.0,0.0001378,2]
[352953803,1739459447922,-1770.9,0.0001378,2]
[352953805,1739459447932,-500.0,0.0001378,2]
[352953807,1739459447942,-500.0,0.0001378,2]
[352953809,1739459447952,-544.915155,0.0001378,2]
[352953811,1739459447961,-590.04287196,0.0001378,2]
[352953813,1739459447971,-500.0,0.0001378,2]
[352953815,1739459447982,-500.0,0.0001378,2]
[352953817,1739459447991,-500.0,0.0001378,2]
[352953819,1739459448001,-544.91516,0.0001378,2]
[352953821,1739459448011,-500.0,0.0001378,2]
[352953823,1739459448021,-1982.06,0.0001378,2]
[352953825,1739459448032,-500.0,0.0001378,2]
[352953827,1739459448042,-629.29916304,0.0001378,2]
[352953829,1739459448053,-500.0,0.0001378,2]
[352953831,1739459448064,-500.0,0.0001378,2]
[352953833,1739459448074,-500.0,0.0001378,2]
[352953835,1739459448086,-500.0,0.0001378,2]
[352953837,1739459448096,-1313.44,0.0001378,2]
[352953839,1739459448107,-501.81099052,0.0001378,2]
[352953841,1739459448117,-5323.99,0.0001378,2]
[352953843,1739459448127,-500.0,0.0001378,2]
[352953845,1739459448137,-500.0,0.0001378,2]
[352953847,1739459448147,-500.0,0.0001378,2]
[352953849,1739459448158,-500.0,0.0001378,2]
[352953851,1739459448168,-4184.05,0.0001378,2]
[352953853,1739459448178,-500.0,0.0001378,2]
[352953855,1739459448189,-626.02,0.0001378,2]
[352953857,1739459448199,-3026.64,0.0001378,2]
[352953859,1739459448210,-1077.99,0.0001378,2]
[352953860,1739459448219,-500.0,0.0001378,2]
[352953862,1739459448229,-438.82802781,0.0001378,2]
[352953864,1739459448240,-501.87697849,0.0001378,2]
[352953866,1739459448251,-500.0,0.0001378,2]
[352953868,1739459448261,-500.0,0.0001378,2]
[352953870,1739459448271,-500.0,0.0001378,2]
[352953872,1739459448280,-500.0,0.0001378,2]
[352953874,1739459448291,-501.05754351,0.0001378,2]
[352953875,1739459448300,-500.0,0.0001378,2]
[352953877,1739459448310,-500.0,0.0001378,2]
[352953879,1739459448320,-2033.68,0.0001378,2]
[352953881,1739459448330,-500.0,0.0001378,2]
[352953883,1739459448340,-500.0,0.0001378,2]
[352953885,1739459448349,-500.0,0.0001378,2]
[352953887,1739459448359,-508.15184309,0.0001378,2]
[352953889,1739459448369,-1825.01,0.0001378,2]
[352953891,1739459448383,-500.0,0.0001378,2]
[352953893,1739459448394,-500.0,0.0001378,2]
[352953895,1739459448404,-500.0,0.0001378,2]
[352953897,1739459448413,-612.71,0.0001378,2]
[352953899,1739459448423,-500.0,0.0001378,2]
[352953901,1739459448432,-589.76,0.0001378,2]
[352953903,1739459448442,-500.0,0.0001378,2]
[352953905,1739459448452,-535.4,0.0001378,2]
[352953907,1739459448462,-501.03449157,0.0001378,2]
[352953909,1739459448472,-4312.63,0.0001378,2]
[352953911,1739459448483,-500.0,0.0001378,2]
[352953913,1739459448493,-500.0,0.0001378,2]
[352953915,1739459448503,-328.34934854,0.0001378,2]
[352953917,1739459448512,-500.0,0.0001378,2]
[352953919,1739459448522,-764.74,0.0001378,2]
[352953921,1739459448532,-500.0,0.0001378,2]
[352953923,1739459448542,-1762.65,0.0001378,2]
[352953924,1739459448552,-500.0,0.0001378,2]
[352953927,1739459448562,-9404.19,0.0001378,2]
[352953928,1739459448573,-500.0,0.0001378,2]
[352953931,1739459448582,-151.0,0.0001378,2]
[352953933,1739459448592,-507.35801912,0.0001378,2]
[352953934,1739459448602,-500.0,0.0001378,2]
[352953936,1739459448612,-500.0,0.0001378,2]
[352953939,1739459448624,-500.0,0.0001378,2]
[352953941,1739459448634,-557.64442043,0.0001378,2]
[352953942,1739459448643,-500.0,0.0001378,2]
[352953945,1739459448653,-2673.12,0.0001378,2]
[352953947,1739459448663,-605.71,0.0001378,2]
[352953949,1739459448673,-598.07,0.0001378,2]
[352953951,1739459448684,-500.0,0.0001378,2]
[352953953,1739459448693,-500.0,0.0001378,2]